[Event "Late-Titled-Tuesday-Blitz-February-27-2024"]
[Site "Chess.com"]
[Date "2024.02.27"]
[Round "5"]
[White "ritanovikova"]
[Black "katharinareinecke"]
[Result "1-0"]
[WhiteElo "2233"]
[BlackElo "2002"]
[TimeControl "180+1"]
[EndTime "14:56:52 PST"]
[Termination "ritanovikova won on time"]

1. e4 {[%clk 0:02:57.8]} 1... c6 {[%clk 0:02:58.9]} 2. d4 {[%clk 0:02:54.7]}
2... d5 {[%clk 0:02:57.9]} 3. Nd2 {[%clk 0:02:55.3]} 3... dxe4 {[%clk
0:02:53.5]} 4. Nxe4 {[%clk 0:02:55.7]} 4... Bf5 {[%clk 0:02:53.6]} 5. Ng3 {[%clk
0:02:55]} 5... Bg6 {[%clk 0:02:53.5]} 6. Bd3 {[%clk 0:02:53.7]} 6... Bxd3 {[%clk
0:02:52.3]} 7. Qxd3 {[%clk 0:02:53.5]} 7... e6 {[%clk 0:02:52.2]} 8. Nf3 {[%clk
0:02:53.7]} 8... Nd7 {[%clk 0:02:49.4]} 9. c3 {[%clk 0:02:52.6]} 9... Ngf6
{[%clk 0:02:49.2]} 10. O-O {[%clk 0:02:51.5]} 10... Be7 {[%clk 0:02:45.8]} 11.
Re1 {[%clk 0:02:47.6]} 11... O-O {[%clk 0:02:45.4]} 12. Bf4 {[%clk 0:02:46.9]}
12... c5 {[%clk 0:02:44.8]} 13. Rad1 {[%clk 0:02:46]} 13... cxd4 {[%clk
0:02:43.9]} 14. Qxd4 {[%clk 0:02:41.9]} 14... Bc5 {[%clk 0:02:34.7]} 15. Qd2
{[%clk 0:02:38.7]} 15... Qb6 {[%clk 0:02:25]} 16. b4 {[%clk 0:02:36.2]} 16...
Be7 {[%clk 0:02:21.9]} 17. a3 {[%clk 0:02:34.7]} 17... Rfd8 {[%clk 0:02:19.9]}
18. Be3 {[%clk 0:02:26.1]} 18... Qc7 {[%clk 0:02:10.6]} 19. Bf4 {[%clk
0:02:23.7]} 19... Qb6 {[%clk 0:02:01.2]} 20. Qe3 {[%clk 0:02:17.6]} 20... Rac8
{[%clk 0:01:55.8]} 21. Qxb6 {[%clk 0:02:15.2]} 21... Nxb6 {[%clk 0:01:52.2]} 22.
Rd2 {[%clk 0:02:10.3]} 22... Rxd2 {[%clk 0:01:49.1]} 23. Bxd2 {[%clk 0:02:09.6]}
23... Nc4 {[%clk 0:01:48.9]} 24. Bc1 {[%clk 0:02:07.4]} 24... Nd5 {[%clk
0:01:47.1]} 25. Ne4 {[%clk 0:02:03.2]} 25... f5 {[%clk 0:01:43.6]} 26. Neg5
{[%clk 0:02:01.2]} 26... Bxg5 {[%clk 0:01:20]} 27. Nxg5 {[%clk 0:01:59.6]} 27...
e5 {[%clk 0:01:19]} 28. h4 {[%clk 0:01:34.6]} 28... Nxc3 {[%clk 0:01:12.9]} 29.
Kh2 {[%clk 0:01:30.6]} 29... h6 {[%clk 0:01:05.9]} 30. Nf3 {[%clk 0:01:30.2]}
30... e4 {[%clk 0:01:05.9]} 31. Nd4 {[%clk 0:01:30.3]} 31... g6 {[%clk
0:00:59.8]} 32. h5 {[%clk 0:01:30.4]} 32... Kf7 {[%clk 0:00:36.2]} 33. hxg6+
{[%clk 0:01:24]} 33... Kxg6 {[%clk 0:00:35.7]} 34. Ne6 {[%clk 0:01:21.6]} 34...
Ne5 {[%clk 0:00:32.7]} 35. Nf4+ {[%clk 0:01:20.5]} 35... Kh7 {[%clk 0:00:31.4]}
36. Bb2 {[%clk 0:01:19.2]} 36... Ng4+ {[%clk 0:00:31]} 37. Kg3 {[%clk 0:01:18]}
37... Na4 {[%clk 0:00:29.1]} 38. Ba1 {[%clk 0:01:13.9]} 38... Rc2 {[%clk
0:00:27.4]} 39. Re2 {[%clk 0:01:07.4]} 39... Rxe2 {[%clk 0:00:26.1]} 40. Nxe2
{[%clk 0:01:08.3]} 40... Kg6 {[%clk 0:00:25.4]} 41. Nf4+ {[%clk 0:01:07.8]}
41... Kh7 {[%clk 0:00:25]} 42. Nd5 {[%clk 0:01:07.4]} 42... Nb6 {[%clk
0:00:24.1]} 43. Ne7 {[%clk 0:01:06.8]} 43... e3 {[%clk 0:00:17.5]} 44. Nxf5
{[%clk 0:01:00.2]} 44... e2 {[%clk 0:00:17]} 45. Bc3 {[%clk 0:00:59.9]} 45...
Ne5 {[%clk 0:00:14.7]} 46. Nd4 {[%clk 0:00:57.4]} 46... e1=Q {[%clk 0:00:12.5]}
47. Bxe1 {[%clk 0:00:57.4]} 47... Nd3 {[%clk 0:00:12.9]} 48. Bc3 {[%clk
0:00:56.2]} 48... Nc4 {[%clk 0:00:13]} 49. a4 {[%clk 0:00:55.5]} 49... Ndb2
{[%clk 0:00:11.8]} 50. a5 {[%clk 0:00:55.1]} 50... Na4 {[%clk 0:00:11.5]} 51.
Be1 {[%clk 0:00:54.4]} 51... b6 {[%clk 0:00:11.6]} 52. a6 {[%clk 0:00:54]} 52...
b5 {[%clk 0:00:10.4]} 53. Nxb5 {[%clk 0:00:54]} 53... Nab6 {[%clk 0:00:10]} 54.
Nxa7 {[%clk 0:00:54]} 54... Nb2 {[%clk 0:00:10.3]} 55. Nc6 {[%clk 0:00:53.9]}
55... Nd3 {[%clk 0:00:10.4]} 56. Bc3 {[%clk 0:00:53.3]} 56... Nd5 {[%clk
0:00:07.8]} 57. Bd4 {[%clk 0:00:51.9]} 57... N3xb4 {[%clk 0:00:06.9]} 58. a7
{[%clk 0:00:49.1]} 58... Nxc6 {[%clk 0:00:04.3]} 59. a8=Q {[%clk 0:00:48.9]}
59... Nxd4 {[%clk 0:00:04.5]} 60. Qxd5 {[%clk 0:00:48.7]} 60... Ne2+ {[%clk
0:00:04.5]} 61. Kf3 {[%clk 0:00:47.4]} 61... Ng1+ {[%clk 0:00:01.7]} 62. Ke3
{[%clk 0:00:46.8]} 1-0

[Event "Late-Titled-Tuesday-Blitz-February-27-2024"]
[Site "Chess.com"]
[Date "2024.02.27"]
[Round "5"]
[White "rasmussvane"]
[Black "KuzubovYuriy"]
[Result "0-1"]
[WhiteElo "2932"]
[BlackElo "2950"]
[TimeControl "180+1"]
[EndTime "14:56:58 PST"]
[Termination "KuzubovYuriy won on time"]

1. d4 {[%clk 0:02:57.3]} 1... Nf6 {[%clk 0:02:59.1]} 2. Nf3 {[%clk 0:02:57]}
2... e6 {[%clk 0:02:58.5]} 3. Bf4 {[%clk 0:02:52.9]} 3... Be7 {[%clk 0:02:58.6]}
4. h3 {[%clk 0:02:51.7]} 4... b6 {[%clk 0:02:56.4]} 5. e3 {[%clk 0:02:51.6]}
5... Bb7 {[%clk 0:02:56.6]} 6. Bd3 {[%clk 0:02:52.1]} 6... O-O {[%clk
0:02:55.4]} 7. O-O {[%clk 0:02:51.3]} 7... c5 {[%clk 0:02:55.3]} 8. c3 {[%clk
0:02:51.8]} 8... d6 {[%clk 0:02:54.6]} 9. Re1 {[%clk 0:02:49.1]} 9... Nc6 {[%clk
0:02:51.3]} 10. Nbd2 {[%clk 0:02:46.1]} 10... Rc8 {[%clk 0:02:47.2]} 11. Qe2
{[%clk 0:02:37.7]} 11... Re8 {[%clk 0:02:43.3]} 12. Bh2 {[%clk 0:02:35.1]} 12...
Bf8 {[%clk 0:02:42.1]} 13. a4 {[%clk 0:02:34.1]} 13... Qe7 {[%clk 0:02:33.8]}
14. Rad1 {[%clk 0:02:25.1]} 14... Red8 {[%clk 0:02:31.3]} 15. Bg3 {[%clk
0:02:19.9]} 15... Qe8 {[%clk 0:02:25.5]} 16. Bb5 {[%clk 0:02:16.1]} 16... Ra8
{[%clk 0:02:11.9]} 17. Bd3 {[%clk 0:01:41.6]} 17... d5 {[%clk 0:02:01.7]} 18.
Ne5 {[%clk 0:01:34.5]} 18... Nxe5 {[%clk 0:01:53.3]} 19. dxe5 {[%clk 0:01:34.1]}
19... Ne4 {[%clk 0:01:48.6]} 20. Nxe4 {[%clk 0:01:33]} 20... dxe4 {[%clk
0:01:48.4]} 21. Bc2 {[%clk 0:01:29.9]} 21... Be7 {[%clk 0:01:45.3]} 22. Bf4
{[%clk 0:01:21.9]} 22... Rxd1 {[%clk 0:01:40.6]} 23. Rxd1 {[%clk 0:01:21.8]}
23... Rd8 {[%clk 0:01:41.3]} 24. Rxd8 {[%clk 0:01:13.7]} 24... Qxd8 {[%clk
0:01:40]} 25. Qg4 {[%clk 0:01:10.8]} 25... Qd2 {[%clk 0:01:33.1]} 26. Qd1 {[%clk
0:00:57.6]} 26... Qxd1+ {[%clk 0:01:32.4]} 27. Bxd1 {[%clk 0:00:58.5]} 27... c4
{[%clk 0:01:31.1]} 28. Kf1 {[%clk 0:00:53.8]} 28... Bd5 {[%clk 0:01:28.7]} 29.
Ke2 {[%clk 0:00:53.9]} 29... Kf8 {[%clk 0:01:28.5]} 30. Bc2 {[%clk 0:00:53.8]}
30... Ke8 {[%clk 0:01:26.2]} 31. f3 {[%clk 0:00:52.3]} 31... exf3+ {[%clk
0:01:20.5]} 32. gxf3 {[%clk 0:00:53.2]} 32... h5 {[%clk 0:01:19.6]} 33. Bg3
{[%clk 0:00:31.5]} 33... g5 {[%clk 0:01:12.5]} 34. e4 {[%clk 0:00:26.7]} 34...
Bc6 {[%clk 0:01:12.6]} 35. f4 {[%clk 0:00:27.3]} 35... gxf4 {[%clk 0:01:06.5]}
36. Bxf4 {[%clk 0:00:28.2]} 36... Kf8 {[%clk 0:01:06.6]} 37. Kf3 {[%clk
0:00:20.1]} 37... Kg7 {[%clk 0:01:06.7]} 38. Be3 {[%clk 0:00:17.4]} 38... Kg6
{[%clk 0:00:59.6]} 39. a5 {[%clk 0:00:11.1]} 39... bxa5 {[%clk 0:00:59.4]} 40.
Bxa7 {[%clk 0:00:11.8]} 40... Bg5 {[%clk 0:00:59.3]} 41. Be3 {[%clk 0:00:11.5]}
41... h4 {[%clk 0:00:53.3]} 42. Bf4 {[%clk 0:00:10]} 42... Be7 {[%clk
0:00:35.3]} 43. Kg4 {[%clk 0:00:09.6]} 43... a4 {[%clk 0:00:29]} 44. Be3 {[%clk
0:00:08.8]} 44... Bd8 {[%clk 0:00:25]} 45. Bf2 {[%clk 0:00:08.7]} 45... Bg5
{[%clk 0:00:24.5]} 46. Bc5 {[%clk 0:00:05.5]} 46... Bd7 {[%clk 0:00:21.6]} 47.
Ba3 {[%clk 0:00:04.5]} 47... f6 {[%clk 0:00:19.9]} 48. exf6 {[%clk 0:00:03.7]}
48... e5+ {[%clk 0:00:20.4]} 49. Kf3 {[%clk 0:00:04.4]} 49... Bxh3 {[%clk
0:00:17]} 50. Bxa4 {[%clk 0:00:04.9]} 50... Be6 {[%clk 0:00:16.3]} 51. Bc6
{[%clk 0:00:04.4]} 51... Bxf6 {[%clk 0:00:16]} 52. Kg2 {[%clk 0:00:02.9]} 52...
h3+ {[%clk 0:00:13.4]} 53. Kf3 {[%clk 0:00:01.6]} 53... Bg4+ {[%clk 0:00:11.1]}
54. Kg3 {[%clk 0:00:01.4]} 54... Bh4+ {[%clk 0:00:11.4]} 55. Kh2 {[%clk
0:00:01.5]} 55... Bg5 {[%clk 0:00:11.9]} 0-1

[Event "Late-Titled-Tuesday-Blitz-February-27-2024"]
[Site "Chess.com"]
[Date "2024.02.27"]
[Round "5"]
[White "IngOscarArdila"]
[Black "noblerone"]
[Result "0-1"]
[WhiteElo "2287"]
[BlackElo "2467"]
[TimeControl "180+1"]
[EndTime "14:56:59 PST"]
[Termination "noblerone won by resignation"]

1. d4 {[%clk 0:03:00]} 1... d5 {[%clk 0:02:54.6]} 2. c4 {[%clk 0:03:00]} 2... c6
{[%clk 0:02:54.3]} 3. cxd5 {[%clk 0:03:00.3]} 3... cxd5 {[%clk 0:02:54.2]} 4.
Nc3 {[%clk 0:03:01.2]} 4... Nf6 {[%clk 0:02:54.6]} 5. Nf3 {[%clk 0:03:02.1]}
5... Nc6 {[%clk 0:02:54.8]} 6. Bf4 {[%clk 0:03:02.3]} 6... Bf5 {[%clk
0:02:52.1]} 7. e3 {[%clk 0:03:02.4]} 7... e6 {[%clk 0:02:51.6]} 8. Bd3 {[%clk
0:03:02.5]} 8... Bxd3 {[%clk 0:02:51.2]} 9. Qxd3 {[%clk 0:03:03.4]} 9... Bd6
{[%clk 0:02:51.5]} 10. Bxd6 {[%clk 0:03:03.6]} 10... Qxd6 {[%clk 0:02:52.4]} 11.
O-O {[%clk 0:03:04.1]} 11... O-O {[%clk 0:02:52.8]} 12. a3 {[%clk 0:03:03.3]}
12... Na5 {[%clk 0:02:48.1]} 13. Nd2 {[%clk 0:03:00.2]} 13... Rac8 {[%clk
0:02:47.3]} 14. Rfc1 {[%clk 0:02:57.4]} 14... Nc4 {[%clk 0:02:46]} 15. Nxc4
{[%clk 0:02:57.2]} 15... dxc4 {[%clk 0:02:46.2]} 16. Qe2 {[%clk 0:02:55.1]}
16... a6 {[%clk 0:02:41.5]} 17. Qf3 {[%clk 0:02:53.8]} 17... b5 {[%clk
0:02:38.9]} 18. Rd1 {[%clk 0:02:51.2]} 18... h6 {[%clk 0:02:34.9]} 19. Rac1
{[%clk 0:02:45.4]} 19... Qb6 {[%clk 0:02:31.9]} 20. d5 {[%clk 0:02:27.3]} 20...
exd5 {[%clk 0:02:22]} 21. Nxd5 {[%clk 0:02:27.1]} 21... Nxd5 {[%clk 0:02:22.1]}
22. Rxd5 {[%clk 0:02:28]} 22... Rcd8 {[%clk 0:02:15.6]} 23. Rcd1 {[%clk
0:02:26.1]} 23... Rxd5 {[%clk 0:02:13.3]} 24. Qxd5 {[%clk 0:02:27]} 24... Rc8
{[%clk 0:02:08.4]} 25. Kf1 {[%clk 0:02:20.4]} 25... a5 {[%clk 0:02:04.4]} 26.
Qd7 {[%clk 0:02:12.9]} 26... Rb8 {[%clk 0:01:50.7]} 27. Rd6 {[%clk 0:01:54.7]}
27... Qc5 {[%clk 0:01:48.6]} 28. Rc6 {[%clk 0:01:53.6]} 28... Qe5 {[%clk
0:01:36.8]} 29. Rc7 {[%clk 0:01:20.6]} 29... Qxb2 {[%clk 0:01:28.7]} 30. Qxf7+
{[%clk 0:01:20.4]} 30... Kh8 {[%clk 0:01:29.3]} 31. g4 {[%clk 0:01:16.2]} 31...
Qe5 {[%clk 0:01:15]} 32. h4 {[%clk 0:01:11.3]} 32... Qa1+ {[%clk 0:00:35.2]} 33.
Kg2 {[%clk 0:01:10.3]} 33... Qf6 {[%clk 0:00:36.1]} 34. Qxf6 {[%clk 0:00:39.2]}
34... gxf6 {[%clk 0:00:37]} 35. Rc5 {[%clk 0:00:39.7]} 35... Kg7 {[%clk
0:00:29.7]} 36. Kf3 {[%clk 0:00:40]} 36... Kf7 {[%clk 0:00:29.4]} 37. Ke4 {[%clk
0:00:40.5]} 37... Ke6 {[%clk 0:00:29.9]} 38. Kd4 {[%clk 0:00:38.6]} 38... Kd6
{[%clk 0:00:27.2]} 39. Rd5+ {[%clk 0:00:37.1]} 39... Kc6 {[%clk 0:00:27.1]} 40.
Rf5 {[%clk 0:00:36.2]} 40... Rd8+ {[%clk 0:00:26.5]} 41. Kc3 {[%clk 0:00:36.5]}
41... Rd3+ {[%clk 0:00:26.6]} 42. Kc2 {[%clk 0:00:36.8]} 42... Rd6 {[%clk
0:00:27.5]} 43. f4 {[%clk 0:00:27.1]} 43... Re6 {[%clk 0:00:22.5]} 44. e4 {[%clk
0:00:21.3]} 44... b4 {[%clk 0:00:19]} 45. axb4 {[%clk 0:00:21]} 45... axb4
{[%clk 0:00:19]} 46. e5 {[%clk 0:00:20.1]} 46... fxe5 {[%clk 0:00:18.1]} 47.
fxe5 {[%clk 0:00:21]} 47... Kd5 {[%clk 0:00:18.5]} 48. g5 {[%clk 0:00:18.4]}
48... hxg5 {[%clk 0:00:19.4]} 49. Rxg5 {[%clk 0:00:15.9]} 49... Rxe5 {[%clk
0:00:17.4]} 50. Rg8 {[%clk 0:00:14.6]} 50... Re2+ {[%clk 0:00:17.2]} 51. Kd1
{[%clk 0:00:14.4]} 51... Rh2 {[%clk 0:00:18.1]} 52. Rg5+ {[%clk 0:00:13.1]}
52... Kd4 {[%clk 0:00:17.7]} 53. Rg4+ {[%clk 0:00:13.7]} 53... Kc3 {[%clk
0:00:17.6]} 54. Rg3+ {[%clk 0:00:12.7]} 54... Kb2 {[%clk 0:00:17.8]} 55. Rg4
{[%clk 0:00:11.5]} 55... Kb3 {[%clk 0:00:18.1]} 56. Rg3+ {[%clk 0:00:11.7]}
56... c3 {[%clk 0:00:18.2]} 57. h5 {[%clk 0:00:11.9]} 57... Rxh5 {[%clk
0:00:17.9]} 58. Rg8 {[%clk 0:00:10.5]} 58... Rh1+ {[%clk 0:00:17.5]} 59. Ke2
{[%clk 0:00:10.1]} 59... c2 {[%clk 0:00:18]} 0-1

[Event "Late-Titled-Tuesday-Blitz-February-27-2024"]
[Site "Chess.com"]
[Date "2024.02.27"]
[Round "5"]
[White "Tunahan_Makaraci"]
[Black "ElHelvetico"]
[Result "1-0"]
[WhiteElo "2576"]
[BlackElo "2736"]
[TimeControl "180+1"]
[EndTime "14:57:00 PST"]
[Termination "Tunahan_Makaraci won by resignation"]

1. e4 {[%clk 0:02:59.9]} 1... g6 {[%clk 0:02:57]} 2. d4 {[%clk 0:02:59.7]} 2...
Bg7 {[%clk 0:02:57.2]} 3. Nc3 {[%clk 0:03:00.3]} 3... c6 {[%clk 0:02:57.7]} 4.
Nf3 {[%clk 0:02:59.8]} 4... d5 {[%clk 0:02:58.1]} 5. h3 {[%clk 0:03:00.3]} 5...
dxe4 {[%clk 0:02:57.8]} 6. Nxe4 {[%clk 0:03:01.2]} 6... Nf6 {[%clk 0:02:58.2]}
7. Bd3 {[%clk 0:03:01.1]} 7... Nxe4 {[%clk 0:02:57]} 8. Bxe4 {[%clk 0:03:01.3]}
8... Bf5 {[%clk 0:02:57.7]} 9. Qd3 {[%clk 0:03:00.1]} 9... Bxe4 {[%clk
0:02:56.2]} 10. Qxe4 {[%clk 0:03:01]} 10... Qd5 {[%clk 0:02:55.8]} 11. Qxd5
{[%clk 0:02:56.6]} 11... cxd5 {[%clk 0:02:56.7]} 12. Ke2 {[%clk 0:02:56.2]}
12... Nc6 {[%clk 0:02:56.5]} 13. c3 {[%clk 0:02:56.1]} 13... O-O-O {[%clk
0:02:53.1]} 14. Bf4 {[%clk 0:02:54.7]} 14... f6 {[%clk 0:02:48.7]} 15. Rad1
{[%clk 0:02:44]} 15... e5 {[%clk 0:02:48.2]} 16. dxe5 {[%clk 0:02:39.6]} 16...
fxe5 {[%clk 0:02:48.3]} 17. Bg5 {[%clk 0:02:30.1]} 17... Rd7 {[%clk 0:02:48.3]}
18. Rhe1 {[%clk 0:02:29.8]} 18... h6 {[%clk 0:02:35.9]} 19. Bc1 {[%clk
0:02:26.5]} 19... e4 {[%clk 0:02:33]} 20. Nd4 {[%clk 0:02:17.2]} 20... Ne5
{[%clk 0:02:05.5]} 21. Ne6 {[%clk 0:01:49.7]} 21... Nd3 {[%clk 0:02:00.4]} 22.
Rf1 {[%clk 0:01:49.5]} 22... Be5 {[%clk 0:01:09.1]} 23. f4 {[%clk 0:01:28]}
23... Bf6 {[%clk 0:01:00.7]} 24. f5 {[%clk 0:01:22.2]} 24... g5 {[%clk
0:00:59.9]} 25. g4 {[%clk 0:01:12.6]} 25... Kb8 {[%clk 0:00:54.6]} 26. Rxd3
{[%clk 0:01:12.3]} 26... exd3+ {[%clk 0:00:55.5]} 27. Kxd3 {[%clk 0:01:13.2]}
27... Rc8 {[%clk 0:00:53.3]} 28. Be3 {[%clk 0:01:10.4]} 28... Rf7 {[%clk
0:00:41.7]} 29. Bf2 {[%clk 0:01:01.4]} 29... Rc4 {[%clk 0:00:39.9]} 30. Re1
{[%clk 0:00:57]} 30... b6 {[%clk 0:00:35.7]} 31. Bd4 {[%clk 0:00:56.9]} 31...
Kc8 {[%clk 0:00:29.5]} 32. Bxf6 {[%clk 0:00:52.7]} 32... Rxf6 {[%clk 0:00:30.4]}
33. Re5 {[%clk 0:00:53]} 33... Ra4 {[%clk 0:00:26]} 34. a3 {[%clk 0:00:45.1]}
34... Rf7 {[%clk 0:00:26.1]} 35. Ke3 {[%clk 0:00:30.7]} 35... Rd7 {[%clk
0:00:19.1]} 36. Nd4 {[%clk 0:00:29.9]} 36... Kd8 {[%clk 0:00:17.5]} 37. Kd3
{[%clk 0:00:20.6]} 37... Rc4 {[%clk 0:00:14.2]} 38. f6 {[%clk 0:00:15.6]} 38...
Rc8 {[%clk 0:00:09.9]} 39. Ne6+ {[%clk 0:00:13.1]} 39... Ke8 {[%clk 0:00:10.6]}
40. Nc5+ {[%clk 0:00:13.2]} 40... Kd8 {[%clk 0:00:11.1]} 41. Nxd7 {[%clk
0:00:12.6]} 41... Kxd7 {[%clk 0:00:12]} 42. Re7+ {[%clk 0:00:12.2]} 42... Kd6
{[%clk 0:00:12]} 43. Rxa7 {[%clk 0:00:12.2]} 43... Rf8 {[%clk 0:00:12.5]} 44. f7
{[%clk 0:00:12.7]} 44... Ke5 {[%clk 0:00:11.8]} 45. a4 {[%clk 0:00:10.2]} 45...
Kf4 {[%clk 0:00:11.5]} 46. Kd4 {[%clk 0:00:08.2]} 46... Kg3 {[%clk 0:00:12.1]}
47. Kxd5 {[%clk 0:00:08.8]} 47... Kxh3 {[%clk 0:00:12.8]} 48. Ke6 {[%clk
0:00:09.5]} 48... Kxg4 {[%clk 0:00:13.2]} 49. Ke7 {[%clk 0:00:10]} 49... Rc8
{[%clk 0:00:11.6]} 50. f8=Q {[%clk 0:00:08.4]} 50... Rxf8 {[%clk 0:00:12.2]} 51.
Kxf8 {[%clk 0:00:09.3]} 51... h5 {[%clk 0:00:12.8]} 52. Rh7 {[%clk 0:00:08.7]}
52... h4 {[%clk 0:00:11.9]} 53. b4 {[%clk 0:00:09.1]} 53... Kh3 {[%clk
0:00:12.4]} 54. a5 {[%clk 0:00:09.5]} 54... bxa5 {[%clk 0:00:11.7]} 55. bxa5
{[%clk 0:00:10.4]} 55... g4 {[%clk 0:00:12.5]} 56. a6 {[%clk 0:00:10.7]} 56...
g3 {[%clk 0:00:13.2]} 57. a7 {[%clk 0:00:11.3]} 57... g2 {[%clk 0:00:14]} 58.
Rg7 {[%clk 0:00:11.9]} 58... Kh2 {[%clk 0:00:14.6]} 59. Rxg2+ {[%clk 0:00:10.2]}
59... Kxg2 {[%clk 0:00:14.1]} 60. a8=Q+ {[%clk 0:00:10.5]} 1-0

[Event "Late-Titled-Tuesday-Blitz-February-27-2024"]
[Site "Chess.com"]
[Date "2024.02.27"]
[Round "5"]
[White "Firouzja2003"]
[Black "platy3"]
[Result "1/2-1/2"]
[WhiteElo "3066"]
[BlackElo "2942"]
[TimeControl "180+1"]
[EndTime "14:57:04 PST"]
[Termination "Game drawn - insufficient material"]

1. d4 {[%clk 0:03:00.9]} 1... Nf6 {[%clk 0:02:59.5]} 2. Bg5 {[%clk 0:03:01.3]}
2... d5 {[%clk 0:02:58.1]} 3. e3 {[%clk 0:03:01.4]} 3... c6 {[%clk 0:02:57.9]}
4. Bd3 {[%clk 0:02:56.5]} 4... Bg4 {[%clk 0:02:55.8]} 5. f3 {[%clk 0:02:49.1]}
5... Bh5 {[%clk 0:02:55]} 6. Ne2 {[%clk 0:02:46.2]} 6... Bg6 {[%clk 0:02:52.4]}
7. Nbc3 {[%clk 0:02:44.1]} 7... Nbd7 {[%clk 0:02:52.1]} 8. e4 {[%clk 0:02:22.8]}
8... dxe4 {[%clk 0:02:45.5]} 9. Nxe4 {[%clk 0:02:10.4]} 9... e6 {[%clk
0:02:34.6]} 10. Nxf6+ {[%clk 0:01:55.1]} 10... Nxf6 {[%clk 0:02:34]} 11. Bxg6
{[%clk 0:01:51.7]} 11... hxg6 {[%clk 0:02:34.9]} 12. Qd2 {[%clk 0:01:51.1]}
12... a5 {[%clk 0:02:26.6]} 13. O-O-O {[%clk 0:01:49.9]} 13... a4 {[%clk
0:02:26.5]} 14. Kb1 {[%clk 0:01:45.7]} 14... Qa5 {[%clk 0:02:23.4]} 15. Qxa5
{[%clk 0:01:39.3]} 15... Rxa5 {[%clk 0:02:21.6]} 16. Bd2 {[%clk 0:01:40.2]}
16... Ra8 {[%clk 0:02:19.4]} 17. c4 {[%clk 0:01:40.8]} 17... Bd6 {[%clk
0:02:18.2]} 18. h3 {[%clk 0:01:35.4]} 18... Ke7 {[%clk 0:02:04.7]} 19. Rhe1
{[%clk 0:01:34.6]} 19... Rhd8 {[%clk 0:02:04]} 20. Nc3 {[%clk 0:01:34.1]} 20...
Bg3 {[%clk 0:01:57]} 21. Rf1 {[%clk 0:01:23.3]} 21... Rxd4 {[%clk 0:01:56.4]}
22. Ne2 {[%clk 0:01:23.1]} 22... Rxd2 {[%clk 0:01:46.9]} 23. Rxd2 {[%clk
0:01:24]} 23... Bd6 {[%clk 0:01:45.7]} 24. Rfd1 {[%clk 0:01:23.4]} 24... Bc5
{[%clk 0:01:45.8]} 25. Nc1 {[%clk 0:01:17.3]} 25... e5 {[%clk 0:01:27.8]} 26.
Nd3 {[%clk 0:01:17.5]} 26... Bd4 {[%clk 0:01:28.1]} 27. Re2 {[%clk 0:01:17.8]}
27... Nd7 {[%clk 0:01:27]} 28. f4 {[%clk 0:01:18.3]} 28... f6 {[%clk 0:01:26.4]}
29. fxe5 {[%clk 0:01:18.5]} 29... fxe5 {[%clk 0:01:26.4]} 30. Nf4 {[%clk
0:01:09.2]} 30... Kf7 {[%clk 0:01:24.8]} 31. Ne6 {[%clk 0:00:57.5]} 31... Kxe6
{[%clk 0:01:15.6]} 32. Rxd4 {[%clk 0:00:57.5]} 32... Nf6 {[%clk 0:01:16.4]} 33.
Kc2 {[%clk 0:00:57.5]} 33... e4 {[%clk 0:01:09.2]} 34. Kc3 {[%clk 0:00:43.8]}
34... Ke5 {[%clk 0:01:09.4]} 35. Rd1 {[%clk 0:00:42.6]} 35... Nh5 {[%clk
0:01:06.9]} 36. Rde1 {[%clk 0:00:38.6]} 36... Ng3 {[%clk 0:01:04.1]} 37. Re3
{[%clk 0:00:31]} 37... Kf4 {[%clk 0:01:04.5]} 38. Kb4 {[%clk 0:00:31.4]} 38...
Re8 {[%clk 0:00:59.5]} 39. Kxa4 {[%clk 0:00:27.4]} 39... Nf5 {[%clk 0:00:59.7]}
40. g3+ {[%clk 0:00:16.5]} 40... Nxg3 {[%clk 0:00:57.4]} 41. Ka5 {[%clk
0:00:14.6]} 41... Ra8+ {[%clk 0:00:48.6]} 42. Kb6 {[%clk 0:00:14.4]} 42... Rxa2
{[%clk 0:00:49.3]} 43. b4 {[%clk 0:00:12.6]} 43... Rb2 {[%clk 0:00:45.6]} 44. b5
{[%clk 0:00:12.6]} 44... cxb5 {[%clk 0:00:45.8]} 45. cxb5 {[%clk 0:00:13.5]}
45... g5 {[%clk 0:00:44.1]} 46. Rc3 {[%clk 0:00:08.2]} 46... g6 {[%clk
0:00:22.4]} 47. Rg1 {[%clk 0:00:05.9]} 47... Nf5 {[%clk 0:00:20.8]} 48. Rg4+
{[%clk 0:00:05.9]} 48... Ke5 {[%clk 0:00:20.6]} 49. Rxg5 {[%clk 0:00:05.9]}
49... e3 {[%clk 0:00:20]} 50. Rxe3+ {[%clk 0:00:05.4]} 50... Kf4 {[%clk
0:00:20.4]} 51. Rxf5+ {[%clk 0:00:03.5]} 51... gxf5 {[%clk 0:00:20.6]} 52. Re7
{[%clk 0:00:04]} 52... Kg3 {[%clk 0:00:21]} 53. Rxb7 {[%clk 0:00:04.2]} 53...
Kxh3 {[%clk 0:00:21]} 54. Kc5 {[%clk 0:00:04.4]} 54... f4 {[%clk 0:00:21.2]} 55.
Rh7+ {[%clk 0:00:03.6]} 55... Kg3 {[%clk 0:00:21.1]} 56. Rg7+ {[%clk 0:00:04.3]}
56... Kf2 {[%clk 0:00:20.5]} 57. b6 {[%clk 0:00:05]} 57... f3 {[%clk 0:00:20.9]}
58. b7 {[%clk 0:00:03.9]} 58... Kf1 {[%clk 0:00:20.9]} 59. Kc6 {[%clk
0:00:03.1]} 59... f2 {[%clk 0:00:21.2]} 60. Rf7 {[%clk 0:00:03.7]} 60... Rxb7
{[%clk 0:00:19]} 61. Kxb7 {[%clk 0:00:03.8]} 61... Ke1 {[%clk 0:00:19.4]} 62.
Rxf2 {[%clk 0:00:04.3]} 62... Kxf2 {[%clk 0:00:20.3]} 1/2-1/2